Cogmind - Beta 14 @@@ ROGUE MODE // 2024.08.21 @ 07:33:45 Player: Dosh Result: Destroyed by Y-45 Defender with Heavy Assault Rifle Performance ------------- Evolutions (2) 1000 Regions Visited (6) 1200 Robots Destroyed (91) 455 Value Destroyed (3391) 3391 Prototype IDs (29) 580 Alien Tech Used (0) 0 Bonus (1177) 1177 TOTAL SCORE: 7803 Bonus ------- High Alert Combat Kills 318 Follower Combat Kills 61 Entered Garrisons 200 Used RIF Installer 500 Aligned with FarCom 300 Friendly Fire -202 Cogmind --------- Core Integrity 0/550 Matter 161/300 Energy 290/290 System Corruption 7% Temperature Cool (0) Movement Treading (400) Ox3 Location -8/Garrison Parts ------- > --- POWER (1) -------- Reinforced Deuterium Engine > --- PROPULSION (3) --- Improved Medium Treads > --- UTILITY (5) ------ Improved Cooling System Coolant Injector Huge Storage Unit > --- WEAPON (2) ------- (None) > --- INVENTORY (25) --- Improved Coolant Injector High-capacity Storage Unit Cloak of Protection Hardened Light Armor Plating System Shield Authchip [R/NC] Relay Coupler [Swarmer] (29) Relay Coupler [Grunt] (22) Relay Coupler [Sentry] (22) Relay Coupler [Sentry] (21) Relay Coupler [Sentry] (24) Relay Coupler [Sentry] (24) Relay Coupler [Hunter] (17) Relay Coupler [Hunter] (17) Relay Coupler [Behemoth] (11) Advanced Trap Extractor (0/8) Splice Drone Bay (6/6) Supersonic Drone Bay (1/1) Smartbomb Launcher Remote Datajack Makeshift Hammer Peak State ------------ > --- POWER ------------ Reinforced Deuterium Engine > --- PROPULSION ------- Improved Medium Treads > --- UTILITY ---------- Improved Cooling System Coolant Injector Improved Coolant Injector Huge Storage Unit Layered Medium Armor Plating > --- WEAPON ----------- Variable Charge Gun > --- INVENTORY -------- High-capacity Storage Unit Cloak of Protection Hardened Light Armor Plating System Shield Authchip [R/NC] Relay Coupler [Grunt] Relay Coupler [Sentry] Relay Coupler [Sentry] Relay Coupler [Sentry] Relay Coupler [Hunter] Relay Coupler [Hunter] Trap Extractor Splice Drone Bay Supersonic Drone Bay Rocket Launcher Smartbomb Launcher Remote Datajack Makeshift Hammer [Rating: 43] Favorites ----------- Power Light Angular Momentum Engine Engine Light Angular Momentum Engine Propulsion Light Treads Treads Light Treads Utility High-capacity Storage Unit Device Improved Heat Sink Storage High-capacity Storage Unit Processor Core Analyzer Hackware Hacking Suite Protection Hardened Light Armor Plating Weapon Heavy Assault Rifle Energy Gun Variable Charge Gun Ballistic Gun Heavy Assault Rifle Launcher Rocket Launcher Special Weapon Remote Datajack Impact Weapon Makeshift Hammer Build | -11 -10 -10 -10 -9 -8 -8 ------- Run | Yrd Mat Min Exi Min Mat Gar Slots Evolved 4 | . . . . . 4 . Power . | . . . . . . . Propulsion 1 | . . . . . 1 . Utility 3 | . . . . . 3 . Weapon . | . . . . . . . Parts Attached 91 | 6 14 7 . 7 16 41 Power 11 | 1 2 . . 2 2 4 Engine 11 | 1 2 . . 2 2 4 Core . | . . . . . . . Reactor . | . . . . . . . Propulsion 20 | 2 3 2 . 2 4 7 Treads 20 | 2 3 2 . 2 4 7 Leg . | . . . . . . . Wheel . | . . . . . . . Hover . | . . . . . . . Flight . | . . . . . . . Utility 22 | 1 3 . . 3 4 11 Device 7 | . . . . 1 2 4 Storage 5 | 1 3 . . . . 1 Processor 1 | . . . . . . 1 Hackware 3 | . . . . . 1 2 Protection 6 | . . . . 2 1 3 Artifact . | . . . . . . . Weapon 38 | 2 6 5 . . 6 19 Energy Gun 4 | 2 1 . . . . 1 Energy Cannon . | . . . . . . . Ballistic Gun 22 | . 4 3 . . 5 10 Ballistic Cannon . | . . . . . . . Launcher 5 | . 1 1 . . . 3 Special Weapon 1 | . . . . . . 1 Impact Weapon 6 | . . 1 . . 1 4 Slashing Weapon . | . . . . . . . Piercing Weapon . | . . . . . . . Special Melee Weapon . | . . . . . . . Unidentified Prototypes 2 | . . . . 1 1 . Parts Lost 29 | . 1 3 . . 3 22 Power 6 | . 1 1 . . 1 3 Propulsion 6 | . . 2 . . . 4 Utility 9 | . . . . . . 9 Weapon 8 | . . . . . 2 6 Highest Loss Streak 12 | . 1 2 . . 2 12 To Critical Strikes . | . . . . . . . Average Slot Usage (%) 86 | . 89 82 71 90 99 78 Engine 9 | . 13 11 . 9 8 8 Treads 25 | . 28 27 28 28 27 19 Device 5 | . . . . . 13 10 Storage 12 | . 18 14 14 14 9 9 Hackware 3 | . . . . . 8 6 Protection 6 | . . . . 8 13 10 Energy Gun 2 | . 9 . . . . 2 Ballistic Gun 19 | . 18 27 28 28 17 9 Peak Build Rating 43 | 6 10 11 9 23 34 43 Average Rating 19 | 4 8 9 8 15 31 32 On Entrance 12 | . 6 9 8 9 19 34 Naked Turns . | . . . . . . . Heaviest Build 115 | 11 69 50 44 58 66 115 Greatest Support 63 | 40 40 40 40 43 63 63 Greatest Overweight (x) 28 | . 1 1 1 1 1 28 Average Overweight (x) . | . . 1 1 1 . 1 Largest Inventory Capacity 25 | 8 20 20 20 20 20 25 Average Capacity 20 | 7 16 20 20 20 20 22 Most Carried 22 | 2 12 12 13 20 20 22 Average Carried 15 | . 8 11 11 17 18 19 Final Capacity 25 | 8 20 20 20 20 20 25 Final Carried 22 | 1 11 10 13 20 20 22 Class Distribution -------------------- 56% | Mutant 29% | Scavenger-Mutant 13% | Bothacker-Mutant Dominant Class ---------------- Mutant | -10/Materials Mutant | -10/Mines Mutant | -10/Exiles Mutant | -9/Mines Scavenger-Mutant | -8/Materials Bothacker-Mutant | -8/Garrison Resources | -11 -10 -10 -10 -9 -8 -8 ----------- Run | Yrd Mat Min Exi Min Mat Gar Matter Collected 2565 | 260 262 192 36 131 459 1225 Remotely . | . . . . . . . Salvage Created 2877 | . 675 253 . 155 689 1105 Parts 188 | . 59 11 . 8 37 73 Haulers Intercepted 3 | . 2 . . . 1 . Recyclers Shooed 3 | . 1 . . . 2 . Parts Field Recycled . | . . . . . . . Retrieved Matter . | . . . . . . . Parts Self-Destructed . | . . . . . . . Prevented . | . . . . . . . Kills | -11 -10 -10 -10 -9 -8 -8 ------- Run | Yrd Mat Min Exi Min Mat Gar Combat Hostiles Destroyed 94 | . 18 27 . 4 10 35 Guns 60 | . 18 7 . 4 10 21 AOE 34 | . . 20 . . . 14 Classes Destroyed 16 | . 7 1 . 2 . 6 Worker 2 | . 1 . . 1 . . Tunneler 3 | . . . . 1 2 . Hauler 3 | . 2 . . . 1 . Recycler 2 | . 1 . . . 1 . Operator 2 | . 2 . . . . . Watcher 4 | . 2 . . . 2 . Swarmer 37 | . 12 7 . 2 2 14 Cutter 2 | . . . . . . 2 Grunt 17 | . 6 1 . 1 3 6 Brawler 2 | . . . . . . 2 Duelist 1 | . . . . . . 1 Sentry 8 | . . . . 1 5 2 Specialist 3 | . . . . . . 3 Programmer 2 | . . . . . . 2 Behemoth 1 | . . . . . . 1 Assembled 20 | . . 20 . . . . Savage 1 | . . . . . . 1 Butcher 1 | . . . . . . 1 Best Kill Streak 20 | . 6 20 . 4 4 6 Combat Bots Only 20 | . 6 20 . 2 3 6 Max Kills in Single Turn 9 | . 2 9 . 1 1 4 Gunslinging 1 | . . 1 . . . . Exploded 9 | . . 9 . . . 4 Melee . | . . . . . . . Uniques/NPCs Destroyed . | . . . . . . . Combat | -11 -10 -10 -10 -9 -8 -8 -------- Run | Yrd Mat Min Exi Min Mat Gar Hostile Shots Fired 410 | . 46 49 . 28 58 229 Missed 107 | . 11 12 . 9 18 57 Damage Taken 4908 | . 299 605 . 191 541 3272 Core 732 | . 71 66 . 37 45 513 Absorbed by Shields 59 | . . . . . . 59 Regen/Repaired (Parts) 30 | . . . . . 30 . Core Remaining (%) 65 | 100 . . . 30 . . Volleys Fired 272 | . 49 23 . 16 54 130 Largest 2 | . 2 2 . 2 2 2 Hottest 225 | . 115 56 . 43 50 225 Shots Fired 506 | . 97 39 . 32 108 230 Gun 483 | . 96 31 . 32 108 216 Cannon . | . . . . . . . Launcher 21 | . 1 8 . . . 12 Special 2 | . . . . . . 2 Kinetic 410 | . 37 31 . 32 108 202 Thermal 73 | . 59 . . . . 14 Explosive 21 | . 1 8 . . . 12 Electromagnetic . | . . . . . . . Robot Hit Streak 17 | . 8 9 . 7 10 17 Robot Miss Streak 5 | . 3 2 . 5 3 5 Penetration Max . | . . . . . . . Secondary Targets 6 | . . 3 . 1 2 . Max Gunslinging Chain 1 | . . 1 . 1 1 . Shots Hit Robots 323 | . 56 22 . 18 71 156 Core Hits 173 | . 33 44 . 8 28 60 Critical Kills 1 | . . . . 1 . . Critical Parts Destroyed 4 | . . . . . . 4 Critical Strikes 5 | . . . . 1 . 4 Destroy 5 | . . . . 1 . 4 Melee Attacks 9 | . . 1 . . 1 7 Impact 9 | . . 1 . . 1 7 Slashing . | . . . . . . . Piercing . | . . . . . . . Sneak Attacks . | . . . . . . . Combat Hostiles . | . . . . . . . Follow-up Attacks . | . . . . . . . Damage Inflicted 7362 | . 865 1334 . 280 1120 3763 Guns 5345 | . 854 330 . 255 1110 2796 Cannons . | . . . . . . . Explosions 1966 | . . 1004 . . . 962 Melee . | . . . . . . . Ramming 51 | . 11 . . 25 10 5 Kinetic 4469 | . 312 330 . 255 1110 2462 Thermal 876 | . 542 . . . . 334 Explosive 1966 | . . 1004 . . . 962 Electromagnetic . | . . . . . . . Impact . | . . . . . . . Slashing . | . . . . . . . Piercing . | . . . . . . . Highest Corruption 7 | . . . . . . 7 Average Corruption 5 | . . . . . . 5 Corruption Purged . | . . . . . . . Corruption Blocked . | . . . . . . . Effects 51 | . . . . . . 51 Message Errors 8 | . . . . . . 8 Matter Fused 12 | . . . . . . 12 Heat Flow Errors 11 | . . . . . . 11 Energy Discharges 10 | . . . . . . 10 Parts Rejected 1 | . . . . . . 1 Data Loss (minor) 5 | . . . . . . 5 Data Loss (major) 2 | . . . . . . 2 Alerts 1 | . . . . . . 1 Weapon Failures 1 | . . . . . . 1 Overload Shots 4 | . . . . . . 4 Overflow Damage 36 | . . 5 . . . 31 Projectiles . | . . . . . . . Explosions 36 | . . 5 . . . 31 Melee . | . . . . . . . Knockbacks . | . . . . . . . Impact . | . . . . . . . Kinetic . | . . . . . . . Secondary . | . . . . . . . Self-Inflicted Damage 103 | . . 47 . . . 56 Shots 4 | . . 1 . . . 3 Rammed 14 | . 5 . . 4 1 4 Targets Rammed 14 | . 5 . . 4 1 4 Kicked . | . . . . . . . Crushed . | . . . . . . . Highest Temperature 573 | . 249 16 . 80 20 573 Average Temperature 93 | . 98 5 . 34 6 124 Received Heat Transfer 1481 | . 45 20 . 54 225 1137 Effects 5 | . . . . . . 5 Energy Bleed 1 | . . . . . . 1 Interference 1 | . . . . . . 1 Matter Decay 1 | . . . . . . 1 Damage (minor) 1 | . . . . . . 1 Damage (major) 1 | . . . . . . 1 Siege Activations . | . . . . . . . Robots Corrupted . | . . . . . . . Combat Hostiles . | . . . . . . . Parts Fried . | . . . . . . . Impact Corruptions . | . . . . . . . Robots Melted . | . . . . . . . Combat Hostiles . | . . . . . . . Parts Melted 3 | . 2 . . 1 . . Heat Transferred 1731 | . 1346 . . . . 385 Parts Sabotaged . | . . . . . . . Parts Stolen . | . . . . . . . Parts Stripped . | . . . . . . . Power Chain Reactions . | . . . . . . . Alert | -11 -10 -10 -10 -9 -8 -8 ------- Run | Yrd Mat Min Exi Min Mat Gar Peak Influence 1633 | . 324 162 . 83 185 1633 Initial 27 | . . 27 . . 11 . Average 259 | . 146 46 . 23 48 774 Maximum Alert Level 5 | . 1 . . . . 5 Low Security (%) 72 | 100 90 100 . 100 100 7 Level 1 4 | . 9 . . . . 9 Level 2 6 | . . . . . . 25 Level 3 12 | . . . . . . 46 Level 4 3 | . . . . . . 11 Level 5 . | . . . . . . . High Security . | . . . . . . . Max Security . | . . . . . . . Squads Dispatched 5 | . 2 . . 2 1 . Investigation . | . . . . . . . Extermination . | . . . . . . . Reinforcement 3 | . 2 . . 1 . . Assault 1 | . . . . 1 . . Garrison 1 | . . . . . 1 . Intercept . | . . . . . . . Searches Triggered . | . . . . . . . Construction Impeded 1 | . . . . 1 . . Haulers Reinforced . | . . . . . . . Active Scanning Responses . | . . . . . . . Cargo Convoy Interrupts . | . . . . . . . Stealth | -11 -10 -10 -10 -9 -8 -8 --------- Run | Yrd Mat Min Exi Min Mat Gar Distress Signals 5 | . 3 . . . 2 . Communications Jammed . | . . . . . . . Distress Signals . | . . . . . . . Times Spotted 114 | . 27 28 . 5 15 39 Peak Tracking Total 18 | . 6 18 . 2 4 6 Tactical Retreats 4 | . 3 . . . . 1 Traps | -11 -10 -10 -10 -9 -8 -8 ------- Run | Yrd Mat Min Exi Min Mat Gar Traps Triggered 8 | . 1 . . . . 7 Indirectly . | . . . . . . . Trap Hack Attempts . | . . . . . . . Triggered . | . . . . . . . Disarmed . | . . . . . . . Reprogrammed . | . . . . . . . Reused . | . . . . . . . Traps Extracted . | . . . . . . . Installed . | . . . . . . . Triggered . | . . . . . . . Machines | -11 -10 -10 -10 -9 -8 -8 ---------- Run | Yrd Mat Min Exi Min Mat Gar Machines Disabled 8 | . 1 . . . . 7 Max in Single Turn 2 | . 1 . . . . 2 Garrison Relay 6 | . . . . . . 6 Machines Repaired . | . . . . . . . Machines Dismantled . | . . . . . . . Machines Sabotaged . | . . . . . . . Overloaded Fab Kills . | . . . . . . . Hacking | -11 -10 -10 -10 -9 -8 -8 --------- Run | Yrd Mat Min Exi Min Mat Gar Machines Accessed 23 | . 6 1 2 1 8 5 Terminals 18 | . 6 1 . . 6 5 Fabricators . | . . . . . . . Repair Stations 1 | . . . . . 1 . Recycling Units . | . . . . . . . Scanalyzers . | . . . . . . . Garrison Access 1 | . . . . . 1 . Total Hacks 62 | . 19 2 2 1 26 12 Successful 29 | . 9 . 2 1 15 2 Failed 31 | . 9 2 . . 10 10 Catastrophic 5 | . . . . . 1 4 Database Lockouts 2 | . 1 . . . 1 . Manual 41 | . 18 2 1 . 18 2 Terminals 55 | . 19 2 . . 22 12 Fabricators . | . . . . . . . Repair Stations 2 | . . . . . 2 . Recycling Units . | . . . . . . . Scanalyzers . | . . . . . . . Garrison Access 2 | . . . . . 2 . Terminal Hacks 15 | . 4 . 2 1 6 2 Record 1 | . . . 1 . . . Robot Schematic 1 | . 1 . . . . . Robot Analysis 5 | . 2 . . . 3 . Prototype ID Bank 2 | . 1 . . . 1 . Open Door 2 | . . . . 1 . 1 Emergency Access Points 1 | . . . . . . 1 Unreport Threat 1 | . . . . . 1 . Hauler Manifests 1 | . . . . . 1 . Derelict Proto ID Bank 1 | . . . 1 . . . Fabricator Hacks . | . . . . . . . Repair Station Hacks 2 | . . . . . 2 . Scan Component 1 | . . . . . 1 . Repair 1 | . . . . . 1 . Recycling Unit Hacks . | . . . . . . . Scanalyzer . | . . . . . . . Garrison Access Hacks 1 | . . . . . 1 . Unlock Access 1 | . . . . . 1 . Unauthorized Hacks 11 | . 5 . . . 6 . Terminals 11 | . 5 . . . 6 . Botnet 2 | . 1 . . . 1 . Skim 9 | . 4 . . . 5 . Fabricators . | . . . . . . . Repair Stations . | . . . . . . . Recycling Units . | . . . . . . . Scanalyzers . | . . . . . . . Garrison Access . | . . . . . . . Data Cores Recovered . | . . . . . . . Used . | . . . . . . . Hacking Detections 17 | . 5 1 . . 6 5 Full Trace Events 2 | . . . . . . 2 Feedback Events . | . . . . . . . Feedback Blocked . | . . . . . . . Robot Schematics Acquired 1 | . 1 . . . . . Robots Built . | . . . . . . . Authchips . | . . . . . . . Time . | . . . . . . . Total Robot Build Rating . | . . . . . . . Part Schematics Acquired . | . . . . . . . Parts Built . | . . . . . . . Authchips . | . . . . . . . Time . | . . . . . . . Total Part Build Rating . | . . . . . . . Parts Repaired 1 | . . . . . 1 . Time 50 | . . . . . 50 . Parts Recycled . | . . . . . . . Recycled Matter . | . . . . . . . Retrieved Matter . | . . . . . . . Retrieved Components . | . . . . . . . Parts Scanalyzed . | . . . . . . . Part Schematics Acquired . | . . . . . . . Parts Damaged . | . . . . . . . Bothacking | -11 -10 -10 -10 -9 -8 -8 ------------ Run | Yrd Mat Min Exi Min Mat Gar Used RIF Installer 1 | . . . . . . 1 Robots Hacked 2 | . . . . . . 2 Non-combat . | . . . . . . . Combat 2 | . . . . . . 2 Robot Hacks Applied 2 | . . . . . . 2 overwrite_iff 2 | . . . . . . 2 Relay Couplers Released 23 | . . . . . . 23 Machine Destruction 23 | . . . . . . 23 Attached 2 | . . . . . . 2 Fabnet Peak Effective % . | . . . . . . . Robots Rewired 3 | . . . . . . 3 Allies Hacked 1 | . . . . . . 1 Hacks Repelled . | . . . . . . . Allies | -11 -10 -10 -10 -9 -8 -8 -------- Run | Yrd Mat Min Exi Min Mat Gar Total Allies 9 | . . 3 . 1 . 5 Largest Group 3 | . . 3 . 1 . 3 Highest-Rated Group 70 | . . 40 . 31 . 70 Highest-Rated Ally 31 | . . 16 . 31 . 25 Total Orders . | . . . . . . . Ally Attacks 24 | . . 12 . 5 . 7 Total Damage 423 | . . 117 . 107 . 199 Kills 5 | . . 2 . 3 . . Allies Corrupted . | . . . . . . . Allies Melted . | . . . . . . . Intel | -11 -10 -10 -10 -9 -8 -8 ------- Run | Yrd Mat Min Exi Min Mat Gar Robot Analysis Total 5 | . 2 . . . 3 . Derelict Logs Recovered 4 | . . 1 . 3 . . Drone Launches . | . . . . . . . Drone Recoveries . | . . . . . . . Exploration | -11 -10 -10 -10 -9 -8 -8 ------------- Run | Yrd Mat Min Exi Min Mat Gar Turns Passed 9894 | 72 1678 1794 560 1569 1667 2554 Spaces Moved 3448 | 41 599 696 233 617 482 780 Core 8 | 4 . . . . . 4 Treads 3440 | 37 599 696 233 617 482 776 Legs . | . . . . . . . Wheels . | . . . . . . . Hover . | . . . . . . . Flight . | . . . . . . . Fastest Speed 50 | 50 160 240 240 240 160 160 Average Speed 234 | 149 213 240 240 240 204 262 Slowest Speed 1450 | 160 240 240 240 240 240 1450 Overloaded Moves . | . . . . . . . Propulsion Burnouts . | . . . . . . . Robots Hopped . | . . . . . . . Cave-ins Triggered . | . . . . . . . Exploration Rate (%) 67 | 4 93 95 61 89 42 87 Regions Visited 6 Branch Regions 3 Pre-discovered Areas 6 | . . 1 1 1 3 . Known Exits Taken 1 | . . . . . 1 . Unknown Exits Taken 5 | 1 1 1 1 1 . . Scrap Searched 5 | . . 2 . 3 . . Spaces Dug 28 | . 8 19 . . 1 . Terrain Destroyed 146 | . 8 67 . . 1 70 Melee 2 | . . 1 . . 1 . Projectile 1 | . . . . . . 1 AOE 143 | . 8 66 . . . 69 Terrain Rammed . | . . . . . . . Walls Destroyed . | . . . . . . . Machines Disabled . | . . . . . . . Actions | -11 -10 -10 -10 -9 -8 -8 --------- Run | Yrd Mat Min Exi Min Mat Gar Total 4812 | 49 896 779 235 670 1072 1111 Wait 840 | 1 208 52 . 17 496 66 Move 3443 | 40 598 695 232 616 482 780 Hop . | . . . . . . . Pick Up 53 | 2 11 1 3 7 12 17 Fast Attach 29 | 5 7 . . 2 2 13 Attach 21 | 1 1 2 . . 8 9 Detach 6 | . 4 . . . 1 1 Swap 41 | . 6 5 . 5 6 19 Drop 30 | . 7 . . 3 9 11 Fire 272 | . 49 23 . 16 54 130 Melee 9 | . . 1 . . 1 7 Ram . | . . . . . . . Kick . | . . . . . . . Crush 14 | . 5 . . 4 1 4 Escape Stasis 12 | . . . . . . 12 Rewire 42 | . . . . . . 42 Trap . | . . . . . . . Miscellaneous . | . . . . . . . Route ------- -11/Scrapyard -10/Materials (discovered 5 exits: [*Mat x3] / *Min x2) -10/Mines (discovered 4 exits: [*Mat x2] / *Exi / [*Sub]) -10/Exiles (discovered 2 exits: *Min x2) -9/Mines -8/Materials (discovered 4 exits: *Fac x3 / Gar) -8/Garrison (discovered 3 exits: *Fac x3) History --------- Turn | Location | Event 7 | -11/Scrapyard | Discovered new exit (range 14) 73 | -11/Scrapyard | Entered Materials 242 | -10/Materials | Discovered new exit (range 9) 305 | -10/Materials | Build established: Mutant 598 | -10/Materials | Discovered new exit (range 12) 773 | -10/Materials | Derelicts attacked the area 1091 | -10/Materials | Discovered new exit (range 8) 1273 | -10/Materials | Central database locked down 1316 | -10/Materials | Discovered new exit (range 13) 1565 | -10/Materials | Discovered new exit (range 15) 1751 | -10/Materials | Entered Mines 1880 | -10/Mines | Learned location of Storage (-7) 1888 | -10/Mines | Assisted by bots powering up and referring to "LRC-V3" 2044 | -10/Mines | A weapon hastily lodged in a ceiling crevice suddenly fell to the ground 2193 | -10/Mines | Deemed a non-threat by the Exiles lab entrance 2193 | -10/Mines | Discovered new exit (range 5) 2503 | -10/Mines | Received a Rocket Launcher from a helpful Derelict 2589 | -10/Mines | Discovered new exit (range 8) 2765 | -10/Mines | Discovered new exit (range 11) 2871 | -10/Mines | Assembled infested the area 2917 | -10/Mines | Destroyed 20 combat bots 2928 | -10/Mines | Lost 3 allies 3206 | -10/Mines | Core integrity fell below 50% 3348 | -10/Mines | Discovered new exit (range 7) 3545 | -10/Mines | Entered Exiles 3577 | -10/Exiles | Discovered new exit (range 15) 3610 | -10/Exiles | Met 8R-AWN 3644 | -10/Exiles | Met EX-HEX 3709 | -10/Exiles | Met EX-BIN 3742 | -10/Exiles | Aligned with FarCom system 3745 | -10/Exiles | Given EX-Vault access code 3800 | -10/Exiles | Opened EX-Vault 3812 | -10/Exiles | Found Supersonic Drone Bay 3820 | -10/Exiles | Found Cloak of Protection 3871 | -10/Exiles | Warned to stay clear of 0b10 Research branches 3943 | -10/Exiles | Met EX-DEC 3958 | -10/Exiles | Learned location of Zion (-6) 4079 | -10/Exiles | Discovered new exit (range 12) 4105 | -10/Exiles | Stole two prototypes: Cloak of Protection, Supersonic Drone Bay 4105 | -10/Exiles | Entered Mines 4106 | -9/Mines | Met a Derelict testing a Signal Generator 4149 | -9/Mines | Learned Materials terminal intel 4158 | -9/Mines | Discovered new exit (range 9) 4349 | -9/Mines | Found a hidden stash of uninstalled traps 4416 | -9/Mines | Learned 2 Materials zone layouts 4644 | -9/Mines | Joined a pair of Derelicts in attacking an 0b10 outpost 4815 | -9/Mines | Found the Drone Emporium 4826 | -9/Mines | Found Prototype Device 4827 | -9/Mines | Identified Splice Drone Bay 5674 | -9/Mines | Entered Materials 5674 | -8/Materials | Evolved 4 slots: Propulsion x1, Utility x3 5676 | -8/Materials | Loaded intel: 12 terminal locations 5698 | -8/Materials | Garrison activated, responded to threat 5990 | -8/Materials | Build established: Scavenger-Mutant 6247 | -8/Materials | Central database locked down 6473 | -8/Materials | Discovered new exit (range 15) 6629 | -8/Materials | Repaired Lgt. Angular Momentum Engine 6961 | -8/Materials | Learned location of Extension (-5) 7024 | -8/Materials | Learned Factory emergency access door positions 7077 | -8/Materials | Identified exit to Factory 7314 | -8/Materials | Learned Factory emergency access door positions 7341 | -8/Materials | Identified exit to Garrison 7341 | -8/Materials | Entered Garrison 7473 | -8/Garrison | Triggered checkpoint 7490 | -8/Garrison | Triggered checkpoint 7492 | -8/Garrison | Triggered checkpoint 7637 | -8/Garrison | Triggered checkpoint 7800 | -8/Garrison | Discovered exit to Factory (range 3) 8048 | -8/Garrison | Installed Relay Interface Framework 8116 | -8/Garrison | Discovered exit to Factory (range 11) 8181 | -8/Garrison | Triggered checkpoint 8326 | -8/Garrison | Garrison Relay disabled 8402 | -8/Garrison | Garrison Relay disabled 8409 | -8/Garrison | P-60 Hacker assimilated allied D3-M1O(l) 8411 | -8/Garrison | P-60 Hacker assimilated allied 3G-TH9(b) 8464 | -8/Garrison | Lost 4 parts (1p2u1w) 8505 | -8/Garrison | Garrison Relay disabled 8535 | -8/Garrison | Garrison Relay disabled 8568 | -8/Garrison | Garrison Relay disabled 8811 | -8/Garrison | Build established: Bothacker-Mutant 8817 | -8/Garrison | Discovered exit to Factory (range 10) 8881 | -8/Garrison | Spotted B-75 Beast 8941 | -8/Garrison | Core integrity fell below 50% 8989 | -8/Garrison | Core integrity fell below 20% 9006 | -8/Garrison | Destroyed B-75 Beast 9034 | -8/Garrison | Lost 12 parts (2p3n4u3w) 9589 | -8/Garrison | Triggered checkpoint 9655 | -8/Garrison | Garrison Relay disabled 9895 | -8/Garrison | Destroyed by Y-45 Defender with Heavy Assault Rifle Last Messages --------------- 09805_ Variable Charge Gun destroyed. 09807_ System corrupted: Rnf. Deuterium Engine rejected. 09808_ G-47 Trooper destroyed. 09808_ L-31 Rogue destroyed. 09810_ G-47 Trooper destroyed. 09812_ Acquired Rnf. Deuterium Engine. 09814_ Acquired 5 matter. 09832_ System corrupted: Heat flow error (+161). 09845_ Rocket Launcher destroyed. 09854_ Acquired 57 matter. 09862_ Acquired 31 matter. 09866_ The unstable cave ceiling collapses. 09872_ System corrupted: Component data lost. 09882_ Slammed into Y-45 Defender. 09883_ Lyr. Medium Armor Plating destroyed. 09886_ Slammed into Y-45 Defender. 09889_ Critical hit (Burn: +37). 09890_ Slammed into Y-45 Defender. 09891_ ALERT: Garrison interior compromised. 09894_ Slammed into Y-45 Defender. Map ----- +----------------------------------------------------+ | #?????????????????????? | | "##T###""""##++#####+### #?????????????????????? | | ####??????????????????# #?????????????????????? | | ######+#??????????????# #?????????????????????? | | #??????????????# ^#?????????????????????? | | ########??????????????#^ ^#?????????????????????? | | #?????????????????????# #????????############?? | | #?????????????????????# #????????#""""""""""#?? | | #?????????????????????# ????????#"""! !!"""#?? | | #?????????????????????# ????????#"" ] ""#?? | | #?????????????????????# ????????#"! !"#?? | | #?????????????????????# ????????#"! !"#?? | | #?????????????????????# #????????#"! !"#?? | | #?????????????????????# #????????#"! !"#?? | | #?????????????????????# #????????#"! !"#?? | | #?????????????????????# #????????#"! !"#?? | | #?????????????????????# #????????#"" ""#?? | | #?????????????????????# #????????#### ######?? | | #?????????????????????# ############# ######## | | ##?????????????????????# # | | ???????????????????????# # | | ???????????????????????# # | | ???????????????????????#;+############## #### # | | ???????????????????????# # ###?????### #??# # | | ???????????????????????# # = ######## #??# # | | ???????????????????????# @ % #??# # | | ???????????????????????# Ys %[ #??# # | | ???????????????????????### ##### ### ##??# # | | ????????????????????????# #??# #???????# # | | ????????????????????????#######??##"##???????# # | | ??????????????????????????????????# ########?# # | | ??????????????????????????????????# + # | | ??????????????????????????????????# ########?# # | | ?????????????????????????????????## #????????##### | | ?????????????????????????????????#" #????????????? | | ?????????????????????????????????#T #????????????? | | ?????????????????????????????????#""#????????????? | | ?????????????????????????????????####????????????? | | ?????????????????????????????????????????????????? | | ?????????????????????????????????????????????????? | | ?????????????????????????????????????????????????? | | ?????????????????????????????????????????????????? | | ?????????????????????????????????????????????????? | | ?????????????????????????????????????????????????? | | | | | | | | | | | | | +----------------------------------------------------+ Best States ------------- Heat Dissipation 62 Coolant Potential 65 Energy Generation 18 Energy Capacity 290 Matter Stores 300 Matter Capacity 300 Sight Range 16 Terrain Scan Density 10 Armor Coverage 300 Evasion (%) 40 Core Analysis 6 Recoil Reduction 3 Offensive Hacking 10 Relay Coupler Types 1 Relay Coupler Value 25 Authchip Count 1 Item Schematics ----------------- None Robot Schematics ------------------ M-13 Machinist | -10/Materials | Hacked Fabricated ------------ Nothing Alien Tech Used ----------------- None Achievements -------------- None Challenges ------------ None Game ------ Seed BombardmentHardenedInsulator Manual? 0 Play Time 00:33:00 Cumulative 484.6 hours Start 2024.08.21 @ 07:02:52 End 2024.08.21 @ 07:33:45 Sessions 1 Manual Loads 0 Difficulty Rogue Special Mode None Game No. 288 Rogue 288 Adventurer 0 Explorer 0 Win Type - Total 35 Types 25/2/4/1/1/0/1/1/0 Lore% 80 Gallery% 85 Achievement% 85 Wizard Run 0 Options --------- Layout 0 ASCII 0 Keyboard 1 Movement Numpad Keybinds 0 Fullscreen 2 Font 18/SmallcapsGlow Map View 76x50 Zoom Use 0% Tactical HUD 1 Map Filters NONE Filters NONE Steam 1 RUN: 7e80a1d5-f67d-4f7a-a803-c631c7149bb1